bitfinex-derivatives/quotes_SOLF0:USTF0_20260127
["timestamp","ask_amount","ask_price","bid_price","bid_amount"]
[1769501025307,16.85396762,124.63,124.57,11.35893949]
[1769501025503,16.85396762,124.63,124.57,13.71909657]
[1769501027913,16.85396762,124.63,124.57,20.95289657]
[1769501029915,16.85396762,124.63,124.58,2.36015708]
[1769501031411,16.85396762,124.63,124.57,18.59273949]
[1769501031412,7.2298,124.64,124.59,10.27422695]
[1769501031608,24.08376762,124.64,124.59,10.27422695]
[1769501031809,24.08376762,124.64,124.59,7.91406987]
[1769501032716,16.85396762,124.63,124.59,7.91406987]
[1769501033014,16.85396762,124.63,124.58,2.36015708]
[1769501039820,16.85396762,124.63,124.59,2.36015708]
[1769501040916,12.82214741,124.65,124.61,2.36015708]
[1769501041221,12.82214741,124.65,124.62,2.36015708]
[1769501042117,7.228,124.68,124.63,2.36015708]
[1769501042520,7.2268,124.7,124.64,2.36015708]
[1769501043120,7.2268,124.7,124.65,2.36015708]
[1769501043321,7.2268,124.7,124.64,2.36015708]
[1769501043522,7.2268,124.7,124.65,2.36015708]
[1769501043921,7.2268,124.7,124.64,2.36015708]
[1769501044117,12.82214741,124.68,124.63,2.36015708]
[1769501044519,12.82214741,124.68,124.62,2.36015708]
[1769501044818,12.82214741,124.68,124.61,2.36015708]
[1769501045224,12.82214741,124.67,124.62,2.36015708]
[1769501045524,12.82214741,124.67,124.64,2.36015708]
[1769501045826,12.82214741,124.67,124.63,2.36015708]
[1769501046521,12.82214741,124.67,124.62,2.36015708]
[1769501047624,12.82214741,124.67,124.62,2.36197161]
[1769501049427,12.82214741,124.67,124.61,30.50644606]
[1769501052225,12.82214741,124.67,124.62,7.45663018]
[1769501052425,12.82214741,124.67,124.61,30.50644606]
[1769501057931,12.82214741,124.67,124.61,28.14447445]
[1769501058127,15.18411902,124.67,124.6,9.81860179]
[1769501058628,15.18411902,124.67,124.6,20.91307445]
[1769501059022,15.18411902,124.67,124.6,28.14507445]
[1769501060325,15.18411902,124.67,124.61,20.68794427]
[1769501060725,15.18411902,124.67,124.61,28.14457445]
[1769501062239,13.75136792,124.69,124.63,11.15801997]
[1769501062734,11.38939631,124.69,124.63,13.51999158]
[1769501066641,13.75136792,124.69,124.63,11.15801997]
[1769501067544,13.13586724,124.68,124.63,11.15801997]
[1769501067838,13.13586724,124.68,124.62,7.2309]
[1769501068033,13.13586724,124.68,124.62,17.98362957]
[1769501070951,13.13586724,124.68,124.62,10.75272957]
[1769501071654,20.36336724,124.68,124.62,10.75272957]
[1769501071848,10.77389563,124.67,124.62,10.75272957]
[1769501077754,13.13586724,124.67,124.6,20.34630118]
[1769501077958,10.77389563,124.66,124.6,17.98432957]
[1769501085362,13.13586724,124.64,124.58,32.99427837]
[1769501085553,13.13586724,124.63,124.58,25.76137837]
[1769501085753,10.77389563,124.62,124.58,15.0086488]
[1769501086158,10.77389563,124.62,124.57,10.75272957]
[1769501086869,10.77389563,124.62,124.57,17.98652957]
[1769501092172,13.13586724,124.62,124.57,17.98652957]
[1769501099783,10.77389563,124.62,124.57,17.98652957]
[1769501100177,18.07691703,124.66,124.6,13.11070592]
[1769501100380,10.84781703,124.66,124.6,13.11070592]
[1769501100981,10.84781703,124.66,124.6,20.34280592]
[1769501101480,10.84781703,124.66,124.61,13.11070592]
[1769501102881,10.84781703,124.68,124.62,13.11070592]
[1769501103082,10.84781703,124.68,124.63,13.11070592]
[1769501103782,10.84781703,124.7,124.64,13.11070592]
[1769501104173,10.84781703,124.7,124.65,2.36197161]
[1769501106288,10.84781703,124.7,124.64,20.34020592]
[1769501109692,10.84781703,124.7,124.64,20.33935239]
[1769501110595,10.84781703,124.7,124.65,2.36111808]
[1769501112488,10.84781703,124.7,124.64,20.33935239]
[1769501114595,10.84781703,124.68,124.62,20.34045239]
[1769501114799,13.20893511,124.68,124.62,10.74873431]
[1769501116392,10.84781703,124.66,124.62,10.74873431]
[1769501116592,10.84781703,124.66,124.6,13.10985239]
[1769501117502,13.20893511,124.66,124.6,10.74873431]
[1769501119401,10.84781703,124.66,124.6,13.10985239]
[1769501119808,10.84781703,124.66,124.61,13.10985239]
[1769501121208,10.84781703,124.66,124.61,10.74873431]
[1769501125606,13.20893511,124.66,124.61,10.74873431]
[1769501128710,10.84781703,124.66,124.61,10.74873431]
[1769501131218,13.20893511,124.66,124.6,7.232]
[1769501131415,12.21314552,124.65,124.6,7.232]
[1769501131808,12.21314552,124.65,124.6,17.04307897]
[1769501133615,9.85202744,124.65,124.6,17.04307897]
[1769501147824,9.85202744,124.67,124.61,9.81107897]
[1769501148025,9.85202744,124.7,124.64,12.17219705]
[1769501148328,9.85202744,124.7,124.65,2.36111808]
[1769501148923,9.85202744,124.7,124.65,12.17219705]
[1769501156129,9.85202744,124.7,124.65,9.81107897]
[1769501156636,12.21314552,124.7,124.63,11.67732239]
[1769501157926,12.21314552,124.7,124.63,18.90762239]
[1769501158734,12.21314552,124.7,124.64,9.31620431]
[1769501163538,12.1489316,124.69,124.62,2.36111808]
[1769501163733,12.1489316,124.69,124.62,9.31620431]
[1769501164240,12.1489316,124.68,124.62,9.31620431]
[1769501164736,9.78781352,124.68,124.62,9.31620431]
[1769501164936,9.78781352,124.7,124.64,9.31620431]
[1769501166942,9.78781352,124.7,124.64,16.54590431]
[1769501169341,9.78781352,124.72,124.66,9.31620431]
[1769501169542,9.78781352,124.72,124.67,9.31620431]
[1769501170040,12.1489316,124.72,124.65,11.67732239]
[1769501170244,12.1489316,124.72,124.65,9.31620431]
[1769501170644,12.1489316,124.71,124.65,9.31620431]
[1769501171641,12.14878814,124.71,124.65,9.31620431]
[1769501171839,12.14878814,124.71,124.65,16.54530431]
[1769501178850,12.14878814,124.71,124.65,9.31620431]
[1769501180052,9.78781352,124.7,124.65,9.31620431]
[1769501183651,9.78781352,124.7,124.65,11.67717893]
[1769501185653,9.78781352,124.7,124.65,9.31620431]
[1769501185853,9.78781352,124.7,124.65,11.67717893]
[1769501196465,9.60735177,124.72,124.66,9.49791912]
[1769501196660,9.60735177,124.72,124.66,11.85889374]
[1769501197270,9.60735177,124.72,124.67,19.08679374]
[1769501197569,9.60735177,124.72,124.68,11.85889374]
[1769501198869,9.60735177,124.74,124.69,2.36097462]
[1769501199576,9.60735177,124.74,124.68,19.08629374]
[1769501200777,11.96832639,124.74,124.68,16.72531912]
[1769501202178,9.60735177,124.74,124.68,16.72531912]
[1769501205675,11.96832639,124.74,124.68,16.72531912]
[1769501207778,9.60735177,124.74,124.68,16.72531912]
[1769501208777,9.60735177,124.74,124.69,9.49791912]
[1769501210485,9.60735177,124.74,124.69,16.72461912]
[1769501210683,9.60735177,124.74,124.7,9.49791912]
[1769501212689,11.96832639,124.74,124.68,9.49791912]
[1769501213690,9.60735177,124.74,124.68,9.49791912]
[1769501213877,9.60735177,124.74,124.69,9.49791912]
[1769501218592,9.33650469,124.76,124.7,8.67904352]
[1769501218790,11.69747931,124.75,124.7,8.67904352]
[1769501223899,11.69747931,124.75,124.7,15.90534352]
[1769501224201,9.33650469,124.75,124.7,15.90534352]
[1769501226401,11.69747931,124.75,124.7,8.67904352]
[1769501230811,2.36097462,124.74,124.7,8.67904352]
[1769501231202,11.69747931,124.74,124.7,8.67904352]
[1769501231606,11.69643086,124.74,124.7,8.67904352]
[1769501240116,11.69643086,124.73,124.68,8.67904352]
[1769501241411,11.47783642,124.72,124.66,25.84178828]
[1769501242109,11.47783642,124.72,124.67,8.62096313]
[1769501242504,11.47783642,124.7,124.66,9.99242515]
[1769501242713,11.47783642,124.7,124.65,8.62096313]
[1769501243208,2.35992617,124.69,124.65,8.62096313]
[1769501247219,11.47783642,124.7,124.65,8.62096313]
[1769501249119,8.83347908,124.69,124.65,8.62096313]
[1769501251523,18.41920525,124.71,124.65,8.62096313]
[1769501251721,8.83347908,124.71,124.66,9.18765021]
[1769501255126,8.83347908,124.71,124.66,11.54757638]
[1769501265629,8.83347908,124.71,124.65,7.2291]
[1769501265630,8.83347908,124.74,124.69,11.54757638]
[1769501273241,8.83347908,124.74,124.69,9.18765021]
[1769501282052,8.83347908,124.74,124.69,11.54757638]
[1769501288466,8.83347908,124.74,124.69,9.18765021]
[1769501290258,8.83347908,124.74,124.69,18.77437638]
[1769501290464,11.42307641,124.76,124.7,8.58052409]
[1769501291174,9.06315024,124.75,124.69,7.2268]
[1769501291365,9.06315024,124.73,124.69,7.2268]
[1769501292468,9.06315024,124.75,124.69,15.80732409]
[1769501292770,9.06315024,124.74,124.69,15.80732409]
[1769501296873,9.06315024,124.74,124.69,8.58052409]
[1769501297575,11.42322956,124.74,124.69,8.58052409]
[1769501305978,11.42322956,124.74,124.68,7.2273]
[1769501305979,10.91708316,124.73,124.67,8.42896435]
[1769501307878,10.91708316,124.73,124.67,15.65696435]
[1769501308179,10.91708316,124.73,124.68,8.42896435]
[1769501310377,18.14188316,124.73,124.68,8.42896435]
[1769501310581,10.91708316,124.72,124.66,8.42896435]
[1769501311974,10.91708316,124.72,124.66,15.65746435]
[1769501317078,8.55700384,124.74,124.68,8.42896435]
[1769501317281,8.55700384,124.74,124.69,8.42896435]
[1769501317481,8.55700384,124.74,124.69,10.78904367]
[1769501318386,8.55700384,124.74,124.7,2.36007932]
[1769501319792,8.55700384,124.74,124.69,10.78904367]
[1769501321585,8.55700384,124.74,124.69,8.42896435]
[1769501321785,8.55700384,124.74,124.69,10.78904367]
[1769501324292,8.55700384,124.74,124.7,2.36007932]
[1769501326186,15.77990384,124.76,124.7,10.78904367]
[1769501326393,15.77990384,124.76,124.71,10.78904367]
[1769501326794,8.55700384,124.8,124.75,2.36007932]
[1769501327997,8.55700384,124.79,124.75,2.36007932]
[1769501328198,8.55700384,124.79,124.74,10.78904367]
[1769501333591,8.55700384,124.79,124.74,8.42896435]
[1769501340511,15.77810384,124.79,124.74,8.42896435]
[1769501340826,8.55700384,124.79,124.74,8.42896435]
[1769501346915,15.77810384,124.79,124.74,8.42896435]
[1769501354628,8.77227789,124.78,124.73,2.35789756]
[1769501356229,8.77227789,124.78,124.73,11.18093606]
[1769501356418,8.77227789,124.8,124.74,8.8230385]
[1769501356622,8.77227789,124.8,124.75,11.18093606]
[1769501357231,8.77227789,124.8,124.76,2.35789756]
[1769501358833,8.77227789,124.8,124.75,11.18093606]
[1769501360334,8.77227789,124.8,124.75,8.8230385]
[1769501360530,11.13017545,124.79,124.74,7.2237]
[1769501362430,11.13017545,124.79,124.73,16.0475385]
[1769501364435,11.13017545,124.79,124.74,8.55596802]
[1769501368743,8.77227789,124.79,124.74,8.55596802]
[1769501380457,8.77227789,124.79,124.74,10.91386558]
[1769501382557,8.77227789,124.79,124.74,8.55596802]
[1769501384667,11.13017545,124.79,124.74,8.55596802]
[1769501384961,7.2206,124.8,124.72,8.55596802]
[1769501384962,10.71997334,124.77,124.72,8.55596802]
[1769501385566,10.71997334,124.76,124.7,8.55596802]
[1769501386563,8.36207578,124.74,124.68,20.83728598]
[1769501386764,8.36207578,124.74,124.68,10.91386558]
[1769501386964,8.36207578,124.73,124.68,8.55596802]
[1769501387264,10.71997334,124.73,124.68,8.55596802]
[1769501388763,8.36207578,124.73,124.68,8.55596802]
[1769501390965,10.71997334,124.73,124.68,8.55596802]
[1769501393466,10.71997334,124.71,124.66,8.55596802]
[1769501394059,2.35789756,124.7,124.66,8.55596802]
[1769501394363,11.03190199,124.7,124.66,8.55596802]
[1769501396867,8.67400443,124.7,124.66,8.55596802]
[1769501398772,11.03190199,124.7,124.64,10.57741375]
[1769501399172,8.67400443,124.69,124.64,8.21951619]
[1769501403171,8.67400443,124.68,124.62,241.87419692]
[1769501403674,8.67400443,124.68,124.62,239.51629936]
[1769501404279,11.03190199,124.68,124.62,239.51629936]
[1769501408085,8.67400443,124.68,124.63,8.21951619]
[1769501410491,11.03190199,124.68,124.63,8.21951619]
[1769501410898,8.67400443,124.68,124.63,8.21951619]
[1769501411988,8.67400443,124.68,124.63,10.57741375]
[1769501413595,8.67400443,124.68,124.63,10.58128296]
[1769501415595,8.67400443,124.68,124.63,8.21951619]
[1769501415794,8.67400443,124.68,124.63,10.58128296]
[1769501426292,8.67400443,124.68,124.64,2.36176677]
[1769501433307,8.67400443,124.68,124.63,2.36176677]
[1769501458436,8.67400443,124.68,124.62,18.03527622]
[1769501462640,8.67400443,124.68,124.63,2.36176677]
[1769501462940,8.67400443,124.68,124.62,10.80437622]
[1769501472752,8.67400443,124.68,124.6,9.9234204]
[1769501472753,8.38965053,124.67,124.6,21.1698916]
[1769501473046,8.38965053,124.67,124.6,11.2464712]
[1769501473240,8.38965053,124.66,124.6,8.88470443]
[1769501473948,15.61835053,124.66,124.6,8.88470443]
[1769501474552,8.38965053,124.66,124.6,8.88470443]
[1769501475150,10.7514173,124.66,124.6,8.88470443]
[1769501475645,10.75269347,124.66,124.6,8.88470443]
[1769501477249,8.38965053,124.66,124.61,8.88470443]
[1769501479451,8.38965053,124.66,124.61,11.24774737]
[1769501481055,8.38965053,124.66,124.61,8.88470443]
[1769501491862,8.38965053,124.66,124.61,16.11590443]
[1769501492056,8.14140254,124.68,124.63,10.72436101]
[1769501492259,8.14140254,124.68,124.64,8.36131807]
[1769501503768,8.14140254,124.68,124.62,10.72436101]
[1769501503969,10.50444548,124.67,124.6,20.64778141]
[1769501504264,8.14140254,124.65,124.6,15.59291807]
[1769501507578,8.14140254,124.65,124.6,17.95596101]
[1769501508668,8.14140254,124.65,124.59,2.36304294]
[1769501508869,8.14140254,124.64,124.58,259.87526156]
[1769501512176,8.14140254,124.64,124.59,8.36131807]
[1769501515572,8.14140254,124.64,124.59,15.59391807]
[1769501516372,8.14140254,124.64,124.59,17.95696101]
[1769501518377,8.14140254,124.64,124.6,2.36304294]
[1769501520985,8.14140254,124.64,124.59,17.95696101]
[1769501521387,8.14140254,124.64,124.6,7.2321]
[1769501521989,8.14140254,124.64,124.6,15.46267525]
[1769501522182,8.14140254,124.64,124.6,17.82571819]
[1769501527093,8.14140254,124.64,124.6,15.46267525]
[1769501530101,8.14140254,124.64,124.6,17.82571819]
[1769501533198,8.14140254,124.64,124.61,2.36304294]
[1769501534505,8.14140254,124.64,124.6,17.82571819]
[1769501535409,8.14140254,124.64,124.6,8.23057525]
[1769501535703,8.14140254,124.64,124.6,10.59361819]
[1769501537612,8.14140254,124.64,124.6,10.59350211]
[1769501539107,9.59102686,124.67,124.6,17.82540211]
[1769501539308,8.32793241,124.66,124.61,2.36292686]
[1769501543414,8.32793241,124.66,124.6,10.59350211]
[1769501560727,8.60070154,124.65,124.6,8.23057525]
[1769501560932,8.60070154,124.65,124.59,2.36292686]
[1769501561133,8.60070154,124.65,124.59,11.01596448]
[1769501561932,15.83010154,124.65,124.59,11.01596448]
[1769501562129,8.60070154,124.64,124.59,11.01596448]
[1769501562529,8.60070154,124.63,124.59,8.65303762]
[1769501562726,8.60070154,124.63,124.58,2.36292686]
[1769501563735,8.60070154,124.63,124.57,11.01596448]
[1769501564335,8.60070154,124.63,124.58,8.65303762]
[1769501564534,8.60070154,124.63,124.58,11.01596448]
[1769501566737,8.60070154,124.63,124.58,8.65303762]
[1769501569337,8.60070154,124.63,124.58,11.01596448]
[1769501570538,8.60070154,124.63,124.59,2.36292686]
[1769501570928,2.36292686,124.67,124.61,11.01596448]
[1769501570929,8.60070154,124.67,124.61,11.01596448]
[1769501571133,8.60070154,124.67,124.62,2.36292686]
[1769501571742,15.82810154,124.69,124.63,11.01596448]
[1769501571943,8.60070154,124.68,124.64,2.36292686]
[1769501575942,8.60070154,124.68,124.63,8.65303762]
[1769501580537,8.72358833,124.67,124.61,11.29901622]
[1769501580743,8.72358833,124.66,124.61,8.93608936]
[1769501581040,11.08651519,124.66,124.61,8.93608936]
[1769501582040,8.72358833,124.65,124.61,8.93608936]
[1769501582337,11.08651519,124.65,124.59,18.53161622]
[1769501582539,11.08651519,124.64,124.59,8.93608936]
[1769501584340,11.08651519,124.63,124.57,8.93608936]
[1769501587743,8.72358833,124.62,124.57,8.93608936]
[1769501587943,8.72358833,124.62,124.56,7.2344]
[1769501587944,11.08651519,124.62,124.56,8.93608936]
[1769501593448,11.08651519,124.62,124.57,8.93608936]
[1769501593650,8.72358833,124.62,124.57,8.93608936]
[1769501595052,18.31651519,124.64,124.58,8.93608936]
[1769501595754,8.72358833,124.63,124.58,8.93608936]
[1769501605363,8.72358833,124.63,124.58,16.16928936]
[1769501608273,11.08740019,124.63,124.58,16.16928936]
[1769501608475,11.08740019,124.63,124.58,8.93608936]
[1769501614877,8.72358833,124.63,124.58,8.93608936]
[1769501620682,11.08740019,124.63,124.58,8.93608936]
[1769501635893,8.72358833,124.63,124.58,8.93608936]
[1769501636495,8.8407344,124.65,124.59,8.36334882]
[1769501636698,11.20454626,124.65,124.59,8.36334882]
[1769501636887,8.8407344,124.65,124.59,10.72716068]
[1769501637896,16.0699344,124.65,124.59,10.72716068]
[1769501638097,8.8407344,124.64,124.59,10.72716068]
[1769501638395,8.8407344,124.64,124.59,8.36334882]
[1769501643196,8.8407344,124.64,124.59,10.72716068]
[1769501644901,16.0705344,124.64,124.59,10.72716068]
[1769501649707,16.0705344,124.64,124.59,8.36334882]
[1769501655409,18.43434626,124.64,124.59,8.36334882]
[1769501656614,8.8407344,124.65,124.59,8.36334882]
[1769501656805,11.20454626,124.65,124.59,8.36334882]
[1769501657715,18.43374626,124.65,124.59,8.36334882]
[1769501658400,8.8407344,124.67,124.61,8.36334882]
[1769501658605,8.8407344,124.67,124.61,10.72716068]
[1769501659313,8.8407344,124.68,124.63,8.36334882]
[1769501660410,9.58911472,124.69,124.59,8.36334882]
[1769501660411,11.20244912,124.65,124.59,8.36334882]
[1769501661506,8.8407344,124.65,124.59,8.36334882]
[1769501663914,8.8407344,124.65,124.6,8.3281001]
[1769501666817,8.8407344,124.65,124.6,10.68981482]
[1769501672024,8.8407344,124.65,124.6,8.3281001]
[1769501675721,8.8407344,124.65,124.6,10.68981482]
[1769501676723,8.8407344,124.65,124.6,8.3281001]
[1769501678919,8.16268418,124.67,124.62,8.14547026]
[1769501679922,8.16268418,124.67,124.61,7.2314]
[1769501682428,8.16268418,124.66,124.61,7.2314]
[1769501696148,8.16268418,124.66,124.61,16.05212204]
[1769501711260,8.16268418,124.66,124.61,25.97554244]
[1769501716659,2.36171472,124.68,124.62,16.05152204]
[1769501716862,8.43846666,124.7,124.65,8.82072204]
[1769501718867,8.43846666,124.7,124.65,11.18243676]
[1769501719661,8.43846666,124.72,124.68,2.35950382]
[1769501721065,8.43846666,124.72,124.67,8.82072204]
[1769501727469,15.66366666,124.72,124.67,8.82072204]
[1769501730170,18.02317048,124.72,124.67,8.82072204]
[1769501732174,15.66366666,124.72,124.67,8.82072204]
[1769501737781,18.02317048,124.72,124.67,8.82072204]
[1769501743685,10.90554249,124.74,124.67,8.82072204]
[1769501744585,8.54603867,124.73,124.67,8.82072204]
[1769501749889,8.54603867,124.73,124.67,16.04862204]
[1769501752090,2.35950382,124.7,124.65,8.42897384]
[1769501752685,10.90554249,124.69,124.63,8.42897384]
[1769501752985,2.35950382,124.67,124.63,8.42897384]
[1769501754692,10.90554249,124.68,124.64,8.61042019]
[1769501756193,8.54603867,124.68,124.64,8.61042019]
[1769501759705,2.35950382,124.69,124.64,8.61042019]
[1769501759908,8.85506218,124.69,124.64,8.61042019]
[1769501760608,8.85506218,124.72,124.66,10.96992401]
[1769501761802,8.85506218,124.72,124.67,10.96992401]
[1769501762204,8.85506218,124.72,124.67,8.61042019]
[1769501773813,8.85506218,124.74,124.67,10.96992401]
[1769501774116,8.85506218,124.74,124.69,8.61042019]
[1769501775019,16.07906218,124.74,124.69,8.61042019]
[1769501778925,8.85506218,124.74,124.69,8.61042019]
[1769501781220,183.35795084,124.76,124.69,10.96995555]
[1769501781525,10.56661609,124.78,124.72,8.7126009]
[1769501781823,8.20708073,124.77,124.72,8.7126009]
[1769501784826,10.56661609,124.77,124.72,8.7126009]
[1769501785129,8.78036241,124.75,124.7,8.87667845]
[1769501786519,8.78036241,124.75,124.7,16.10297845]
[1769501786725,11.13989777,124.75,124.7,16.10297845]
[1769501790635,8.78036241,124.75,124.7,16.10297845]
[1769501792835,11.13989777,124.75,124.7,16.10297845]
[1769501797241,8.78036241,124.75,124.7,16.10297845]
[1769501797439,8.78036241,124.75,124.68,2.35953536]
[1769501797440,8.78036241,124.77,124.72,8.87667845]
[1769501797641,11.13989777,124.77,124.72,8.87667845]
[1769501798537,8.78036241,124.77,124.72,8.87667845]
[1769501798935,2.35953536,124.78,124.72,8.87667845]
[1769501799243,11.13989777,124.79,124.73,8.87667845]
[1769501800241,2.35953536,124.78,124.73,8.87667845]
[1769501800541,11.13989777,124.78,124.73,8.87667845]
[1769501801442,2.35953536,124.77,124.73,8.87667845]
[1769501802040,11.13989777,124.78,124.73,8.87667845]
[1769501808340,8.78036241,124.77,124.73,8.87667845]
[1769501812543,8.78036241,124.77,124.73,16.10117845]
[1769501814844,8.78036241,124.77,124.73,8.87667845]
[1769501815138,2.35953536,124.79,124.73,8.87667845]
[1769501815139,8.5491962,124.79,124.74,8.27809882]
[1769501816536,10.90873156,124.79,124.74,8.27809882]
[1769501818250,8.5491962,124.77,124.72,15.50319882]
[1769501819239,8.5491962,124.77,124.73,8.27809882]
[1769501820750,8.5491962,124.76,124.71,8.27809882]
[1769501820937,2.35953536,124.74,124.69,18.20151922]
[1769501821140,8.5491962,124.74,124.69,8.27809882]
[1769501821340,8.5491962,124.74,124.7,8.27809882]
[1769501821538,10.90873156,124.76,124.7,8.27809882]
[1769501822950,2.35953536,124.75,124.7,8.27809882]
[1769501823249,8.5491962,124.74,124.68,257.46296365]
[1769501823447,8.5491962,124.74,124.68,255.10342829]
[1769501825151,8.5491962,124.74,124.69,8.27809882]
[1769501825853,10.90873156,124.74,124.69,8.27809882]
[1769501828146,8.5491962,124.74,124.69,8.27809882]
[1769501835157,8.5491962,124.74,124.69,15.50499882]
[1769501838961,8.5491962,124.74,124.69,7.2269]
[1769501839359,8.5491962,124.74,124.68,239.59832947]
[1769501839567,10.90922496,124.74,124.68,247.87642829]
[1769501839755,10.90922496,124.73,124.68,247.87642829]
[1769501840663,10.90922496,124.73,124.68,8.27809882]
[1769501841359,8.5491962,124.73,124.68,8.27809882]
[1769501850272,8.5491962,124.73,124.68,15.50549882]
[1769501850478,8.5491962,124.73,124.68,17.86552758]
[1769501852675,8.5491962,124.73,124.68,8.27809882]
[1769501852877,7.85537158,124.7,124.64,17.98741844]
[1769501853080,7.85537158,124.7,124.65,8.06399804]
[1769501853777,7.85537158,124.7,124.65,17.6532268]
[1769501854075,7.85537158,124.7,124.65,10.4240268]
[1769501862284,7.85537158,124.7,124.65,17.6532268]
[1769501879396,7.85537158,124.7,124.66,2.36002876]
[1769501880796,7.85537158,124.7,124.67,2.36002876]
[1769501881100,7.96133606,124.72,124.67,2.36002876]
[1769501882599,7.2246,124.73,124.69,2.36002876]
[1769501882898,7.96133606,124.72,124.68,2.36002876]
[1769501884193,7.96133606,124.72,124.67,2.36002876]
[1769501884495,7.96133606,124.72,124.68,2.36002876]
[1769501887495,7.96133606,124.72,124.67,2.36002876]
[1769501887701,7.96133606,124.72,124.68,2.36002876]
[1769501888702,7.96133606,124.72,124.67,2.36002876]
[1769501899608,7.96133606,124.72,124.66,10.24027441]
[1769501901609,7.96133606,124.72,124.66,10.24062705]
[1769501911213,7.2156108,124.71,124.65,9.9234204]
[1769501911401,7.2156108,124.7,124.65,269.84]
[1769501912103,7.2156108,124.69,124.64,7.2421535]
[1769501916002,7.2156108,124.69,124.64,9.6025349]
[1769501916719,7.2156108,124.71,124.65,7.2421535]
[1769501917011,7.2156108,124.73,124.67,9.6025349]
[1769501917910,7.2156108,124.73,124.67,7.2421535]
[1769501925420,7.2156108,124.72,124.67,7.2421535]
[1769501942530,9.5759922,124.72,124.67,7.2421535]
[1769501943227,7.2156108,124.72,124.67,7.2421535]
[1769501944632,7.04951615,124.74,124.68,9.17093484]
[1769501947334,7.04951615,124.73,124.68,9.17093484]
[1769501947531,7.04951615,124.71,124.66,6.73125401]
[1769501947728,9.40989755,124.7,124.64,317.84689843]
[1769501947928,9.40989755,124.7,124.64,307.92347803]
[1769501949026,9.40989755,124.7,124.64,315.15317803]
[1769501953231,9.40989755,124.69,124.64,307.92347803]
[1769501957842,7.04951615,124.69,124.64,307.92347803]
[1769501961741,9.40989755,124.69,124.64,301.21802225]
[1769501961943,9.23733929,124.67,124.62,6.35547635]
[1769501962135,9.23733929,124.67,124.63,305.44]
[1769501962638,6.87695789,124.67,124.63,305.44]
[1769501965341,6.87695789,124.67,124.63,311.71016471]
[1769501969345,2.36223779,124.68,124.63,311.71016471]
[1769501970852,9.58973779,124.68,124.63,311.71016471]
[1769501972254,2.36223779,124.67,124.63,311.71016471]
[1769501972946,14.16007323,124.68,124.63,311.71016471]
[1769501974854,7.2282,124.67,124.63,311.71016471]
[1769501985760,7.2282,124.67,124.63,314.0724025]
[1769501995871,7.2271,124.69,124.64,5.7185316]
[1769501996169,7.2271,124.69,124.64,8.08076939]
[1769501997571,7.2271,124.69,124.64,5.7185316]
[1769502001278,13.71749063,124.69,124.64,5.7185316]
[1769502002977,7.2262,124.71,124.66,5.62277208]
[1769502003184,7.2262,124.71,124.67,5.62277208]
[1769502003881,7.2264,124.7,124.67,7.208e-05]
[1769502009388,7.2264,124.7,124.66,2.36223779]
[1769502011386,7.2264,124.7,124.63,315.3634204]
[1769502011687,7.2264,124.7,124.65,2.36223779]
[1769502014682,7.2264,124.7,124.66,2.36223779]
[1769502018888,7.2264,124.7,124.65,2.36223779]
[1769502023695,7.2264,124.7,124.65,2.36086134]
[1769502025400,13.84292798,124.7,124.65,2.36086134]
[1769502028302,13.84292798,124.7,124.63,322.5937204]
[1769502028502,13.84292798,124.7,124.64,2.36086134]
[1769502030298,6.61652798,124.69,124.64,2.36086134]
[1769502030799,13.84222798,124.71,124.65,2.36086134]
[1769502031106,6.61652798,124.7,124.65,2.36086134]
[1769502037610,6.61652798,124.7,124.64,9.59066134]
[1769502038712,6.61652798,124.7,124.64,19.51408174]
[1769502039006,6.61652798,124.7,124.64,9.59066134]
[1769502040314,6.61652798,124.7,124.64,19.51408174]
[1769502045422,16.20368932,124.7,124.64,17.1532204]
[1769502046721,6.61652798,124.69,124.64,17.1532204]
[1769502053124,8.97738932,124.67,124.62,9.9234204]
[1769502053432,8.97738932,124.67,124.61,330.1834204]
[1769502054030,8.97738932,124.67,124.61,337.4149204]
[1769502054626,6.61652798,124.67,124.61,339.77578174]
[1769502057634,6.61652798,124.67,124.61,329.85236134]
[1769502057832,2.36086134,124.69,124.62,19.51498174]
[1769502058132,6.61652798,124.68,124.62,9.59156134]
[1769502058931,6.61652798,124.68,124.62,19.51498174]
[1769502059731,6.61652798,124.68,124.62,17.1541204]
[1769502060329,6.61652798,124.68,124.62,7.2307]
[1769502061836,6.61652798,124.68,124.62,17.1541204]
[1769502062036,8.97738932,124.71,124.63,2.36086134]
[1769502062226,8.97738932,124.71,124.64,2.36086134]
[1769502062227,6.61652798,124.71,124.64,2.36086134]
[1769502062428,6.61652798,124.71,124.65,320.28]
[1769502062635,6.61652798,124.7,124.65,320.28]
[1769502064735,6.61652798,124.7,124.65,327.5091]
[1769502072934,6.61652798,124.7,124.65,320.28]
[1769502074143,6.61652798,124.7,124.65,322.64086134]
[1769502076042,6.61652798,124.71,124.65,322.64086134]
[1769502078043,6.61652798,124.7,124.65,320.28]
[1769502092053,6.61652798,124.7,124.65,322.64111718]
[1769502092743,6.61652798,124.7,124.65,320.28]
[1769502094455,6.61652798,124.7,124.65,322.64111718]
[1769502094659,7.2258,124.71,124.65,322.64111718]
[1769502097362,7.2263,124.7,124.63,9.9234204]